Cogmind - Beta 16.1 @@@ ROGUE MODE // 2026.02.24 @ 18:56:46 Player: GlasMayne Result: Destroyed by S-10 Pest with Light Assault Rifle Performance ------------- Evolutions (0) 0 Regions Visited (1) 200 Robots Destroyed (8) 40 Value Destroyed (263) 263 Prototype IDs (0) 0 Alien Tech Used (0) 0 Bonus (0) 0 TOTAL SCORE: 503 Bonus ------- None Cogmind --------- Core Integrity 0/250 Matter 295/300 Energy 125/125 System Corruption 0% Temperature Cool (0) Movement Walking (120) Location -10/Materials Parts ------- > --- POWER (1) -------- Light Ion Engine > --- PROPULSION (2) --- Aluminum Leg > --- UTILITY (2) ------ (None) > --- WEAPON (2) ------- (None) > --- INVENTORY (5) ---- Light Ion Engine Huge Storage Unit EM Pulse Gun EM Pulse Gun Mining Claw Peak State ------------ > --- POWER ------------ Light Ion Engine > --- PROPULSION ------- Light Treads Light Treads > --- UTILITY ---------- High-capacity Storage Unit Seismic Detector > --- WEAPON ----------- Medium Laser > --- INVENTORY -------- Light Ion Engine Light Ion Engine Light Ion Engine Aluminum Leg Aluminum Leg Small Storage Unit Huge Storage Unit EM Pulse Gun EM Pulse Gun Mining Laser [Rating: 7] Favorites ----------- Power Light Ion Engine Engine Light Ion Engine Propulsion Light Treads Treads Light Treads Leg Aluminum Leg Utility Seismic Detector Device Seismic Detector Storage High-capacity Storage Unit Weapon Medium Laser Energy Gun Medium Laser Build | -11 -10 ------- Run | Yrd Mat Slots Evolved . | . . Power . | . . Propulsion . | . . Utility . | . . Weapon . | . . Parts Attached 13 | 6 7 Power 3 | 1 2 Engine 3 | 1 2 Core . | . . Reactor . | . . Propulsion 4 | 2 2 Treads 2 | 2 . Leg 2 | . 2 Wheel . | . . Hover . | . . Flight . | . . Utility 4 | 2 2 Device 1 | 1 . Storage 3 | 1 2 Processor . | . . Hackware . | . . Protection . | . . Artifact . | . . Weapon 2 | 1 1 Energy Gun 2 | 1 1 Energy Cannon . | . . Ballistic Gun . | . . Ballistic Cannon . | . . Launcher . | . . Special Weapon . | . . Impact Weapon . | . . Slashing Weapon . | . . Piercing Weapon . | . . Special Melee Weapon . | . . Unidentified Prototypes . | . . Parts Lost 6 | . 6 Power 1 | . 1 Propulsion 2 | . 2 Utility 1 | . 1 Weapon 2 | . 2 Highest Loss Streak 4 | . 4 To Critical Strikes . | . . Average Backups 8 | 6 8 Power 2 | 1 2 Propulsion 2 | 2 1 Utility 1 | . 1 Weapon 2 | 2 3 Tool/Special . | . . Unused Backups 7 | 2 5 Power 1 | . 1 Propulsion 2 | 2 . Utility . | . . Weapon 4 | . 4 Tool/Special . | . . Average Slot Usage (%) 84 | . 84 Engine 13 | . 13 Treads 21 | . 21 Leg 1 | . 1 Device 12 | . 12 Storage 12 | . 12 Energy Gun 20 | . 20 Peak Build Rating 7 | 6 7 Average Rating 6 | 5 6 On Entrance 3 | . 6 Avg Prop Armor Cover (%) . | . . Naked Turns . | . . Heaviest Build 47 | 11 47 Greatest Support 40 | 40 40 Greatest Overweight (x) 2 | . 2 Average Overweight (x) . | . 1 Largest Inventory Capacity 25 | 8 25 Average Capacity 16 | 7 18 Most Carried 10 | 8 10 Average Carried 8 | 6 9 Final Capacity 8 | 8 5 Final Carried 8 | 8 5 Class Distribution -------------------- 100% | Mutant Dominant Class ---------------- Mutant | -10/Materials Resources | -11 -10 ----------- Run | Yrd Mat Matter Collected 345 | 259 86 Remotely . | . . Salvage Created 371 | 105 266 Parts 15 | 6 9 Haulers Intercepted . | . . Recyclers Shooed . | . . Parts Field Recycled . | . . Retrieved Matter . | . . Parts Self-Destructed . | . . Prevented . | . . Parts Restored . | . . Kills | -11 -10 ------- Run | Yrd Mat Combat Hostiles Destroyed 6 | . 6 Guns 5 | . 5 AOE 1 | . 1 Classes Destroyed 3 | 2 1 Tunneler 1 | 1 . Recycler 1 | 1 . Grunt 6 | . 6 Best Kill Streak 2 | 2 2 Combat Bots Only 2 | . 2 Max Kills in Single Turn 1 | 1 1 Gunslinging . | . . Exploded 1 | . 1 Melee . | . . Uniques/NPCs Destroyed . | . . Combat | -11 -10 -------- Run | Yrd Mat Hostile Shots Fired 86 | . 86 Missed 27 | . 27 Hits 59 | . 59 Projectile 59 | . 59 Damage Taken 839 | . 839 Core 252 | . 252 Absorbed by Shields . | . . Core Remaining (%) 100 | 100 . Volleys Fired 47 | 9 38 Largest 2 | 1 2 Hottest 90 | 50 90 Shots Fired 64 | 9 55 Gun 64 | 9 55 Cannon . | . . Launcher . | . . Special . | . . Kinetic . | . . Thermal 64 | 9 55 Explosive . | . . Electromagnetic . | . . Robot Hit Streak 9 | 2 9 Robot Miss Streak 4 | 1 4 Penetration Max . | . . Secondary Targets 1 | . 1 Max Gunslinging Chain 1 | . 1 Shots Hit Robots 42 | 5 37 Core Hits 17 | 3 14 Critical Kills . | . . Critical Parts Destroyed . | . . Critical Strikes 4 | 1 3 Burn 4 | 1 3 Melee Attacks . | . . Impact . | . . Slashing . | . . Piercing . | . . Sneak Attacks . | . . Combat Hostiles . | . . Follow-up Attacks . | . . Damage Inflicted 637 | 61 576 Guns 523 | 61 462 Cannons . | . . Explosions 114 | . 114 Melee . | . . Ramming . | . . Kinetic . | . . Thermal 523 | 61 462 Explosive 114 | . 114 Electromagnetic . | . . Impact . | . . Slashing . | . . Piercing . | . . Highest Corruption . | . . Average Corruption . | . . Corruption Purged . | . . Corruption Blocked . | . . Overload Shots . | . . Overflow Damage 8 | . 8 Projectiles . | . . Explosions 8 | . 8 Melee . | . . Knockbacks . | . . Impact . | . . Kinetic . | . . Secondary . | . . Self-Inflicted Damage 189 | . 189 Shots 2 | . 2 Rammed 1 | . 1 Targets Rammed 1 | . 1 Kicked . | . . Crushed . | . . Highest Temperature 324 | 30 324 Average Temperature 99 | 12 112 Received Heat Transfer 309 | . 309 Siege Activations . | . . Martial Activations . | . . Shielding Activations . | . . Robots Disrupted . | . . Combat Hostiles . | . . Robots Corrupted . | . . Combat Hostiles . | . . Parts Fried . | . . Impact Corruptions . | . . Robots Melted . | . . Combat Hostiles . | . . Parts Melted 6 | . 6 Heat Transferred 1767 | 259 1508 Parts Sabotaged . | . . Parts Stolen . | . . Parts Stripped . | . . Power Chain Reactions . | . . Alert | -11 -10 ------- Run | Yrd Mat Maximum Alert Level . | . . Low Security (%) 100 | 100 100 Level 1 . | . . Level 2 . | . . Level 3 . | . . Level 4 . | . . Level 5 . | . . High Security . | . . Max Security . | . . Peak Influence 119 | 5 119 Initial . | . . Average 28 | . 36 Influence Increases 229 | 10 219 Destroy 0b10 Robot/C 120 | . 120 Destroy 0b10 Robot/NC 10 | 10 . Destroy Leader 30 | . 30 Disable Machine 30 | . 30 Destroy Structure 39 | . 39 Influence Decreases 229 | 10 219 Time Decay 169 | 10 159 Lost Part 60 | . 60 Squads Dispatched 3 | . 3 Investigation . | . . Extermination . | . . Reinforcement 3 | . 3 Assault . | . . Garrison . | . . Intercept . | . . Searches Triggered . | . . Construction Impeded . | . . Haulers Reinforced . | . . Active Scanning Responses . | . . Cargo Convoy Interrupts . | . . Stealth | -11 -10 --------- Run | Yrd Mat Distress Signals 3 | . 3 Communications Jammed . | . . Distress Signals . | . . Times Spotted 18 | . 18 Peak Tracking Total 7 | . 7 Tactical Retreats . | . . Traps | -11 -10 ------- Run | Yrd Mat Traps Triggered . | . . Indirectly . | . . Trap Hack Attempts . | . . Triggered . | . . Disarmed . | . . Reprogrammed . | . . Reused . | . . Traps Extracted . | . . Installed . | . . Triggered . | . . Machines | -11 -10 ---------- Run | Yrd Mat Machines Disabled 2 | . 2 Max in Single Turn 2 | . 2 Machines Repaired . | . . Machines Dismantled . | . . Machines Sabotaged . | . . Overloaded Fab Kills . | . . Hacking | -11 -10 --------- Run | Yrd Mat Machines Accessed 1 | . 1 Terminals 1 | . 1 Fabricators . | . . Repair Stations . | . . Recycling Units . | . . Scanalyzers . | . . Garrison Access . | . . Total Hacks 1 | . 1 Successful . | . . Failed 1 | . 1 Catastrophic 1 | . 1 Database Lockouts . | . . Manual . | . . Terminals 1 | . 1 Fabricators . | . . Repair Stations . | . . Recycling Units . | . . Scanalyzers . | . . Garrison Access . | . . Terminal Hacks . | . . Fabricator Hacks . | . . Repair Station Hacks . | . . Recycling Unit Hacks . | . . Scanalyzer . | . . Garrison Access Hacks . | . . Unauthorized Hacks . | . . Terminals . | . . Fabricators . | . . Repair Stations . | . . Recycling Units . | . . Scanalyzers . | . . Garrison Access . | . . Data Cores Recovered . | . . Used . | . . Hacking Detections 1 | . 1 Full Trace Events . | . . Feedback Events . | . . Feedback Blocked . | . . Robot Schematics Acquired . | . . Robots Built . | . . Authchips . | . . Time . | . . Total Robot Build Rating . | . . Part Schematics Acquired . | . . Parts Built . | . . Authchips . | . . Time . | . . Total Part Build Rating . | . . Part Studies Acquired . | . . Parts Repaired . | . . Time . | . . Parts Recycled . | . . Recycled Matter . | . . Retrieved Matter . | . . Retrieved Components . | . . Parts Scanalyzed . | . . Part Schematics Acquired . | . . Parts Damaged . | . . Bothacking | -11 -10 ------------ Run | Yrd Mat Used RIF Installer . | . . Robots Hacked . | . . Non-combat . | . . Combat . | . . Robot Hacks Applied . | . . Relay Couplers Released . | . . Fabnet Peak Effective % . | . . Robots Rewired . | . . Allies Hacked . | . . Hacks Repelled . | . . Allies | -11 -10 -------- Run | Yrd Mat Total Allies . | . . Largest Group . | . . Highest-Rated Group . | . . Highest-Rated Ally . | . . Total Orders . | . . Ally Attacks . | . . Total Damage . | . . Kills . | . . Allies Corrupted . | . . Allies Melted . | . . Intel | -11 -10 ------- Run | Yrd Mat Active Infowar (turns) 536 | 85 451 Seismic 536 | 85 451 Robot Analysis Total . | . . Derelict Logs Recovered . | . . Drone Launches . | . . Drone Recoveries . | . . Exploration | -11 -10 ------------- Run | Yrd Mat Turns Passed 629 | 143 486 Spaces Moved 219 | 72 147 Core 11 | 11 . Treads 181 | 61 120 Legs 27 | . 27 Wheels . | . . Hover . | . . Flight . | . . Fastest Speed 50 | 50 120 Average Speed 205 | 143 236 Slowest Speed 320 | 160 320 Overloaded Moves . | . . Propulsion Burnouts . | . . Robots Hopped . | . . Potential Cave-ins . | . . Cave-ins Triggered . | . . Exploration Rate (%) 19 | 5 34 Regions Visited 1 Branch Regions . Pre-discovered Areas . | . . Known Exits Taken . | . . Unknown Exits Taken 1 | 1 . Scrap Searched . | . . Spaces Dug . | . . Terrain Destroyed 40 | . 40 Melee . | . . Projectile . | . . AOE 40 | . 40 Terrain Rammed . | . . Walls Destroyed . | . . Machines Disabled . | . . Actions | -11 -10 --------- Run | Yrd Mat Total 327 | 101 226 Wait 27 | 3 24 Move 218 | 71 147 Hop . | . . Pick Up 13 | 10 3 Fast Attach 7 | 6 1 Attach 2 | . 2 Detach . | . . Swap 8 | . 8 Drop 4 | 2 2 Fire 47 | 9 38 Melee . | . . Ram . | . . Kick . | . . Crush 1 | . 1 Escape Stasis . | . . Rewire . | . . Trap . | . . Miscellaneous . | . . Route ------- -11/Scrapyard -10/Materials (discovered 1 exit: [*Min]) History --------- Turn | Location | Event 12 | -11/Scrapyard | Discovered new exit (range 16) 144 | -11/Scrapyard | Entered Materials 314 | -10/Materials | Build established: Mutant 455 | -10/Materials | Core integrity fell below 50% 595 | -10/Materials | Core integrity fell below 20% 623 | -10/Materials | Discovered new exit (range 9) 630 | -10/Materials | Destroyed by S-10 Pest with Light Assault Rifle Last Messages --------------- 00562_ U-05 Engineer builds a Wall. 00563_ K-01 Serf collects debris. 00566_ U-05 Engineer builds a Wall. 00569_ K-01 Serf collects debris. 00570_ U-05 Engineer builds a Door. 00572_ K-01 Serf collects debris. 00574_ U-05 Engineer builds a Wall. 00575_ K-01 Serf collects debris. 00577_ ALERT: Hostiles spotted, dispatching reinforcements to Terminal M006. 00579_ U-05 Engineer lays Concrete. 00584_ Lgt. Treads destroyed. 00589_ Dropped Hcp. Storage Unit. 00594_ W-16 Scout sends out distress signal. 00595_ Seismic Detector destroyed. 00607_ Sml. Laser destroyed. 00613_ Med. Laser destroyed. 00623_ EXIT=FOUND 00628_ ALERT: Hostiles spotted, dispatching reinforcements to Terminal M008. Map ----- +----------------------------------------------------+ | ?????????????????????????????????????????????????? | | ?????????????????????????????????????????????????? | | ?????????????????????????????????????????????????? | | ?????????????????????????????????????????????????? | | ?????????????????????????????????????????????????? | | ?????????????????????????????????????????????????? | | ??????????????????????????????????????????????#### | | ????????????????????????????????????????????? | | ?????????????????????????????????????????????? | | ???????????????????????????????????????????????? " | | ?????????????????????????????????????????????????" | | ?????????????????????????????????????????????"" " | | ??????????????????????????? ?????????????? | | ??????????????????????????# ????????????? | | ??????????????????????????# #??????????????##### | | ?????????????????????????## ####???????????????? | | ?????????????????????????# """????????????????? | | ?????????????????????????# "#???????????????? | | ?????????????????????????# !"#?????????????? | | ?????????????????????????# < ""#???????????? | | ?????????????????????????# |"#??????????????"" | | ?????????????????????????# "????????????????? | | ?????????????????????????# ""?????????????????? | | ??????????????????????????# #??????????????????? | | ????????????????#+######### ######?????????????? | | ????????????????# @# #?????????????? | | ????????????????# s #??????#??????? | | ????????????????# #s s #???? #??????? | | ????????????????# ###### #?? ""#??????? | | ????????????????# #?#### # Y"#??????? | | ????????????????# ! ###! / ""#??????? | | ????????????????# ##! # #??????? | | ????????????????# ##! ############### | | ????????????????####+#######! | | ???????????????????????????#! | | ???????????????????????????##! | | ????????????????????????????#### ############ | | ???????????????????????????????# #??????????# | | ???????????????????????????????# #??????????# = | | ???????????????????????????????# #??????????# *! | | ???????????????????????????????# #??????????# | | | ???????????????????????????????# #??????????# | | ???????????????????????????????# #??????????# | | ???????????????????????????????# ???????????# | | ???????????????????????????????# ???????????# | | ???????????????????????????????# ???????????# | | ???????????????????????????????# ???????????# | | ???????????????????????????????# ???????????# | | ?????????????????????????????????????????????? | | ?????????????????????????????????????????????? | +----------------------------------------------------+ Best States ------------- Heat Dissipation 25 Energy Generation 10 Energy Capacity 125 Matter Stores 300 Matter Capacity 300 Sight Range 16 Terrain Scan Density 10 Evasion (%) 55 Recoil Reduction 2 Item Schematics ----------------- None Robot Schematics ------------------ None Fabricated ------------ Nothing Repaired ---------- Nothing Studied --------- None Alien Tech Used ----------------- None Achievements -------------- None Challenges ------------ None Game ------ Seed StasisSapperShield Manual? 0 Play Time 00:05:43 Cumulative 26.0 hours Start 2026.02.20 @ 18:52:55 End 2026.02.24 @ 18:56:46 Sessions 1 Manual Loads 0 Difficulty Rogue Special Mode None Game No. 47 Rogue 47 Adventurer 0 Explorer 0 Win Type - Total 0 Types 0/0/0/0/0/0/0/0/0/0 Lore% 11 Gallery% 26 Achievement% 17 Wizard Run 0 Options --------- Layout 2 ASCII 0 Keyboard 1 Movement Numpad Keybinds 0 Fullscreen 1 Font 24/Smallcaps Map View 50x44 Zoom Use 0% Tactical HUD 1 Map Filters NONE Filters NONE Steam 1 RUN: 5dfd00db-8360-4ac8-a4a5-248683b6ab8a